[Event "Live Chess"]
[Site "Chess.com"]
[Date "2023.05.21"]
[Round "-"]
[White "WelshTiger"]
[Black "raminguy"]
[Result "1-0"]
[WhiteElo "2309"]
[BlackElo "1949"]
[TimeControl "300"]
[EndTime "5:04:13 PDT"]
[Termination "WelshTiger won by resignation"]

1. Nc3 {[%clk 0:04:54.4]} 1... d5 {[%clk 0:04:57]} 2. d4 {[%clk 0:04:53.7]} 2...
Nf6 {[%clk 0:04:54.9]} 3. Bg5 {[%clk 0:04:51.4]} 3... e6 {[%clk 0:04:51.3]} 4.
e4 {[%clk 0:04:47.8]} 4... dxe4 {[%clk 0:04:48.2]} 5. Nxe4 {[%clk 0:04:46.3]}
5... Be7 {[%clk 0:04:47]} 6. Bxf6 {[%clk 0:04:45]} 6... Bxf6 {[%clk 0:04:46.9]}
7. c3 {[%clk 0:04:44.1]} 7... O-O {[%clk 0:04:43.1]} 8. Nf3 {[%clk 0:04:43.4]}
8... Be7 {[%clk 0:04:38.7]} 9. Bd3 {[%clk 0:04:42.5]} 9... b6 {[%clk 0:04:27.8]}
10. O-O {[%clk 0:04:40.8]} 10... Bb7 {[%clk 0:04:26.8]} 11. Qe2 {[%clk
0:04:40.3]} 11... Nd7 {[%clk 0:04:24.5]} 12. Rad1 {[%clk 0:04:39.3]} 12... Nf6
{[%clk 0:04:22.7]} 13. Ne5 {[%clk 0:04:36.6]} 13... Nxe4 {[%clk 0:04:06.5]} 14.
Bxe4 {[%clk 0:04:36.5]} 14... Bxe4 {[%clk 0:04:04.9]} 15. Qxe4 {[%clk
0:04:36.4]} 15... Bf6 {[%clk 0:04:02.5]} 16. Rfe1 {[%clk 0:04:33]} 16... Bxe5
{[%clk 0:03:57.2]} 17. Qxe5 {[%clk 0:04:32.3]} 17... c6 {[%clk 0:03:50.5]} 18.
Re3 {[%clk 0:04:22.4]} 18... Qf6 {[%clk 0:03:45.8]} 19. Rg3 {[%clk 0:04:18.8]}
19... Qxe5 {[%clk 0:03:44.2]} 20. dxe5 {[%clk 0:04:18.7]} 20... Rfd8 {[%clk
0:03:43]} 21. Rgd3 {[%clk 0:04:18.4]} 21... Rd5 {[%clk 0:03:36.4]} 22. c4 {[%clk
0:04:17.4]} 22... Rxd3 {[%clk 0:03:31.9]} 23. Rxd3 {[%clk 0:04:17.3]} 23... Kf8
{[%clk 0:03:29.9]} 24. Rd7 {[%clk 0:04:16.4]} 24... Ke8 {[%clk 0:03:29]} 25. Rb7
{[%clk 0:04:14.4]} 25... Rd8 {[%clk 0:03:28]} 26. g3 {[%clk 0:04:12.5]} 26...
Rd7 {[%clk 0:03:27.3]} 27. Rb8+ {[%clk 0:04:09.3]} 27... Ke7 {[%clk 0:03:26.1]}
28. Kg2 {[%clk 0:04:06.4]} 28... Rd8 {[%clk 0:03:25.3]} 29. Rb7+ {[%clk
0:04:03.2]} 29... Rd7 {[%clk 0:03:24.5]} 30. Rb8 {[%clk 0:04:02.6]} 30... Rd8
{[%clk 0:03:23.9]} 31. Rxd8 {[%clk 0:04:02]} 31... Kxd8 {[%clk 0:03:23.1]} 32.
Kf3 {[%clk 0:04:01.9]} 32... Kd7 {[%clk 0:03:22.4]} 33. Ke4 {[%clk 0:04:01.3]}
33... c5 {[%clk 0:03:22.1]} 34. f4 {[%clk 0:03:57.7]} 34... g6 {[%clk
0:03:20.5]} 35. g4 {[%clk 0:03:56.9]} 35... h6 {[%clk 0:03:13.5]} 36. h4 {[%clk
0:03:53]} 36... a5 {[%clk 0:03:09.7]} 37. f5 {[%clk 0:03:51.2]} 37... g5 {[%clk
0:03:02.2]} 38. hxg5 {[%clk 0:03:43.1]} 38... hxg5 {[%clk 0:03:01]} 39. f6
{[%clk 0:03:29.4]} 39... Kc6 {[%clk 0:02:59.8]} 40. Kd3 {[%clk 0:03:28.1]} 40...
b5 {[%clk 0:02:52.6]} 41. cxb5+ {[%clk 0:03:18.1]} 41... Kxb5 {[%clk 0:02:51.2]}
42. b3 {[%clk 0:03:17.5]} 42... Kb4 {[%clk 0:02:48.4]} 43. Kc2 {[%clk
0:03:15.5]} 43... a4 {[%clk 0:02:47.2]} 44. bxa4 {[%clk 0:03:14]} 44... Kxa4
{[%clk 0:02:46.2]} 45. Kc3 {[%clk 0:03:13.7]} 45... Kb5 {[%clk 0:02:44.7]} 46.
Kb3 {[%clk 0:03:11.4]} 46... c4+ {[%clk 0:02:43]} 47. Kc3 {[%clk 0:03:10.8]}
47... Kc5 {[%clk 0:02:29.2]} 48. a4 {[%clk 0:03:10]} 48... Kd5 {[%clk
0:02:28.7]} 49. a5 {[%clk 0:03:09.1]} 49... Kxe5 {[%clk 0:02:28.3]} 50. a6
{[%clk 0:03:08.3]} 1-0

[Event "Live Chess"]
[Site "Chess.com"]
[Date "2023.05.21"]
[Round "-"]
[White "JanMur7"]
[Black "Conradical12"]
[Result "1-0"]
[WhiteElo "1962"]
[BlackElo "1580"]
[TimeControl "300"]
[EndTime "5:04:36 PDT"]
[Termination "JanMur7 won by checkmate"]

1. e4 {[%clk 0:04:58.9]} 1... e5 {[%clk 0:04:58.3]} 2. Nf3 {[%clk 0:04:58.1]}
2... Nc6 {[%clk 0:04:57.2]} 3. Nc3 {[%clk 0:04:57.4]} 3... Nf6 {[%clk
0:04:56.3]} 4. Nxe5 {[%clk 0:04:56.5]} 4... Nxe5 {[%clk 0:04:54.6]} 5. d4 {[%clk
0:04:56]} 5... Ng6 {[%clk 0:04:52.5]} 6. e5 {[%clk 0:04:55.2]} 6... Ng8 {[%clk
0:04:48.6]} 7. Bc4 {[%clk 0:04:54.4]} 7... d5 {[%clk 0:04:46.1]} 8. Bxd5 {[%clk
0:04:53.3]} 8... Bb4 {[%clk 0:04:43.8]} 9. Qf3 {[%clk 0:04:50.4]} 9... Qd7
{[%clk 0:04:24.7]} 10. O-O {[%clk 0:04:45.3]} 10... Bxc3 {[%clk 0:04:17.1]} 11.
bxc3 {[%clk 0:04:42.8]} 11... c6 {[%clk 0:04:15.8]} 12. Bc4 {[%clk 0:04:41]}
12... a5 {[%clk 0:04:08.7]} 13. Ba3 {[%clk 0:04:39.5]} 13... b5 {[%clk
0:04:05.1]} 14. Bd3 {[%clk 0:04:36.1]} 14... N8e7 {[%clk 0:04:03.8]} 15. Be4
{[%clk 0:04:29.6]} 15... O-O {[%clk 0:04:00.1]} 16. Qg3 {[%clk 0:04:21.1]} 16...
Bb7 {[%clk 0:03:55.1]} 17. f4 {[%clk 0:03:58.9]} 17... Rfe8 {[%clk 0:03:45.7]}
18. f5 {[%clk 0:03:29.9]} 18... Nf8 {[%clk 0:03:38.1]} 19. f6 {[%clk 0:03:16.7]}
19... Neg6 {[%clk 0:03:34.4]} 20. Bf5 {[%clk 0:03:13.7]} 20... Qd5 {[%clk
0:03:19.5]} 21. Bxf8 {[%clk 0:02:57.6]} 21... Rxf8 {[%clk 0:03:12.7]} 22. h4
{[%clk 0:02:52.1]} 22... c5 {[%clk 0:03:08.1]} 23. h5 {[%clk 0:02:47.5]} 23...
Nh4 {[%clk 0:03:05.3]} 24. Qxg7# {[%clk 0:02:44.5]} 1-0

[Event "Live Chess"]
[Site "Chess.com"]
[Date "2023.05.21"]
[Round "-"]
[White "defenderalist"]
[Black "NomisY"]
[Result "0-1"]
[WhiteElo "1651"]
[BlackElo "1572"]
[TimeControl "300"]
[EndTime "5:04:40 PDT"]
[Termination "NomisY won by resignation"]

1. e4 {[%clk 0:04:58.1]} 1... c6 {[%clk 0:04:58.3]} 2. g3 {[%clk 0:04:56.1]}
2... d5 {[%clk 0:04:57.1]} 3. Bg2 {[%clk 0:04:54.5]} 3... dxe4 {[%clk
0:04:54.7]} 4. Bxe4 {[%clk 0:04:53.4]} 4... Nf6 {[%clk 0:04:54.2]} 5. Bg2 {[%clk
0:04:52.4]} 5... Bf5 {[%clk 0:04:52.4]} 6. Nc3 {[%clk 0:04:50.9]} 6... e6 {[%clk
0:04:51.4]} 7. d3 {[%clk 0:04:28]} 7... h6 {[%clk 0:04:47.9]} 8. Nge2 {[%clk
0:04:26.4]} 8... Be7 {[%clk 0:04:40.4]} 9. Bd2 {[%clk 0:04:21.8]} 9... Nbd7
{[%clk 0:04:37.6]} 10. O-O {[%clk 0:04:20]} 10... O-O {[%clk 0:04:35.6]} 11. a3
{[%clk 0:04:17.4]} 11... Bh7 {[%clk 0:04:07.1]} 12. Qc1 {[%clk 0:04:15.7]} 12...
Qc7 {[%clk 0:03:55.3]} 13. Nf4 {[%clk 0:04:12.7]} 13... Nb6 {[%clk 0:03:16.4]}
14. Qd1 {[%clk 0:03:56.3]} 14... Nbd5 {[%clk 0:03:13.8]} 15. Ncxd5 {[%clk
0:03:53.4]} 15... cxd5 {[%clk 0:03:12.9]} 16. Nh5 {[%clk 0:03:50.7]} 16... Rac8
{[%clk 0:03:04.9]} 17. Nxf6+ {[%clk 0:03:44.8]} 17... Bxf6 {[%clk 0:03:04]} 18.
c3 {[%clk 0:03:41.3]} 18... Bxd3 {[%clk 0:02:58.6]} 19. Bxh6 {[%clk 0:03:40]}
19... Bxf1 {[%clk 0:02:55.9]} 20. Bxf1 {[%clk 0:03:33.2]} 20... gxh6 {[%clk
0:02:52.2]} 21. Qg4+ {[%clk 0:03:29.6]} 21... Bg7 {[%clk 0:02:45.8]} 22. Bd3
{[%clk 0:03:28.9]} 22... f5 {[%clk 0:02:31.8]} 23. Qh5 {[%clk 0:03:24.8]} 23...
Qf7 {[%clk 0:02:30.5]} 24. Qh3 {[%clk 0:03:21.7]} 24... e5 {[%clk 0:02:19.2]}
25. f4 {[%clk 0:03:13.8]} 25... e4 {[%clk 0:02:17.8]} 26. Bc2 {[%clk 0:03:12]}
26... Kh7 {[%clk 0:01:55.3]} 27. Bb3 {[%clk 0:03:09.9]} 27... Rfd8 {[%clk
0:01:49.3]} 28. Rd1 {[%clk 0:03:08.3]} 28... Qd7 {[%clk 0:01:41.1]} 29. c4
{[%clk 0:02:53.4]} 29... d4 {[%clk 0:01:38.3]} 30. c5 {[%clk 0:02:50.2]} 30...
d3 {[%clk 0:01:34.3]} 31. Qh5 {[%clk 0:02:41.8]} 31... Rf8 {[%clk 0:01:19.9]}
32. h3 {[%clk 0:02:33.3]} 32... Qc6 {[%clk 0:01:18.1]} 33. g4 {[%clk 0:02:31.7]}
33... Qxc5+ {[%clk 0:01:10.9]} 34. Kh2 {[%clk 0:02:30.9]} 34... fxg4 {[%clk
0:01:09.1]} 35. hxg4 {[%clk 0:02:29.8]} 35... Qxh5+ {[%clk 0:01:07.6]} 0-1

[Event "Live Chess"]
[Site "Chess.com"]
[Date "2023.05.21"]
[Round "-"]
[White "seasidecastle27"]
[Black "Ginger_GM"]
[Result "0-1"]
[WhiteElo "1845"]
[BlackElo "2731"]
[TimeControl "300"]
[EndTime "5:04:46 PDT"]
[Termination "Ginger_GM won by checkmate"]

1. d4 {[%clk 0:04:56.1]} 1... e6 {[%clk 0:04:58.8]} 2. e4 {[%clk 0:04:54]} 2...
b6 {[%clk 0:04:57.2]} 3. Bd3 {[%clk 0:04:51.7]} 3... Bb7 {[%clk 0:04:56.3]} 4.
Nf3 {[%clk 0:04:49.9]} 4... d6 {[%clk 0:04:51.9]} 5. Qe2 {[%clk 0:04:46.7]} 5...
g6 {[%clk 0:04:49.6]} 6. c3 {[%clk 0:04:44.9]} 6... Bg7 {[%clk 0:04:48.6]} 7.
Bg5 {[%clk 0:04:41.9]} 7... Ne7 {[%clk 0:04:47.4]} 8. Nbd2 {[%clk 0:04:39.6]}
8... h6 {[%clk 0:04:46.4]} 9. Bh4 {[%clk 0:04:37.7]} 9... Nd7 {[%clk 0:04:45.4]}
10. O-O {[%clk 0:04:34.3]} 10... a6 {[%clk 0:04:43.8]} 11. Rad1 {[%clk
0:04:26.7]} 11... g5 {[%clk 0:04:42]} 12. Bg3 {[%clk 0:04:24.8]} 12... Ng6
{[%clk 0:04:41.2]} 13. e5 {[%clk 0:04:18.1]} 13... d5 {[%clk 0:04:37.2]} 14.
Bxg6 {[%clk 0:04:13.8]} 14... fxg6 {[%clk 0:04:36]} 15. Qd3 {[%clk 0:04:11.5]}
15... Nf8 {[%clk 0:04:33.9]} 16. Ne1 {[%clk 0:04:06.5]} 16... Qe7 {[%clk
0:04:31.2]} 17. f4 {[%clk 0:04:04.9]} 17... gxf4 {[%clk 0:04:28.4]} 18. Bxf4
{[%clk 0:04:01.7]} 18... O-O-O {[%clk 0:04:26.9]} 19. Nef3 {[%clk 0:03:56.3]}
19... g5 {[%clk 0:04:23.8]} 20. Be3 {[%clk 0:03:54.1]} 20... c5 {[%clk
0:04:14.5]} 21. dxc5 {[%clk 0:03:50.5]} 21... bxc5 {[%clk 0:04:13.5]} 22. b4
{[%clk 0:03:46.3]} 22... c4 {[%clk 0:04:07.7]} 23. Qd4 {[%clk 0:03:44.3]} 23...
Nd7 {[%clk 0:04:06.6]} 24. Qa7 {[%clk 0:03:36.6]} 24... g4 {[%clk 0:04:01.2]}
25. Nd4 {[%clk 0:03:30.1]} 25... Bxe5 {[%clk 0:03:58.9]} 26. b5 {[%clk
0:03:24.7]} 26... Bb8 {[%clk 0:03:56.3]} 27. Nc6 {[%clk 0:03:10.8]} 27... Bxc6
{[%clk 0:03:52]} 28. Qxa6+ {[%clk 0:03:04.7]} 28... Bb7 {[%clk 0:03:50.8]} 29.
Qa5 {[%clk 0:02:59.3]} 29... Qd6 {[%clk 0:03:48.8]} 30. Bf4 {[%clk 0:02:53.5]}
30... e5 {[%clk 0:03:47.8]} 31. Nxc4 {[%clk 0:02:50]} 31... Qc5+ {[%clk
0:03:41.3]} 32. Kh1 {[%clk 0:02:15.8]} 32... exf4 {[%clk 0:03:36.4]} 33. Na3
{[%clk 0:02:07.8]} 33... f3 {[%clk 0:03:31.1]} 34. g3 {[%clk 0:02:04.4]} 34...
f2 {[%clk 0:03:29.2]} 35. c4 {[%clk 0:02:00.9]} 35... d4# {[%clk 0:03:27.7]} 0-1

[Event "Live Chess"]
[Site "Chess.com"]
[Date "2023.05.21"]
[Round "-"]
[White "Chesscoach_Golichenko"]
[Black "MarkLim1"]
[Result "1-0"]
[WhiteElo "2612"]
[BlackElo "1694"]
[TimeControl "300"]
[EndTime "5:05:08 PDT"]
[Termination "Chesscoach_Golichenko won by checkmate"]

1. d4 {[%clk 0:04:57.7]} 1... Nf6 {[%clk 0:04:59.2]} 2. c4 {[%clk 0:04:54.8]}
2... e6 {[%clk 0:04:58.4]} 3. Nc3 {[%clk 0:04:45.3]} 3... d5 {[%clk 0:04:57.4]}
4. Nf3 {[%clk 0:04:43.9]} 4... c5 {[%clk 0:04:55.4]} 5. cxd5 {[%clk 0:04:42.1]}
5... Nxd5 {[%clk 0:04:54.5]} 6. e4 {[%clk 0:04:40.6]} 6... Nxc3 {[%clk 0:04:54]}
7. bxc3 {[%clk 0:04:39.6]} 7... cxd4 {[%clk 0:04:53.9]} 8. cxd4 {[%clk
0:04:39.5]} 8... Bb4+ {[%clk 0:04:53.4]} 9. Bd2 {[%clk 0:04:37.2]} 9... Bxd2+
{[%clk 0:04:52.8]} 10. Qxd2 {[%clk 0:04:37.1]} 10... O-O {[%clk 0:04:51.6]} 11.
Bd3 {[%clk 0:04:36.2]} 11... Nc6 {[%clk 0:04:50.6]} 12. e5 {[%clk 0:04:35]}
12... Qa5 {[%clk 0:04:46.3]} 13. Qxa5 {[%clk 0:04:27.6]} 13... Nxa5 {[%clk
0:04:44.7]} 14. Rc1 {[%clk 0:04:27.2]} 14... Nc6 {[%clk 0:04:42.2]} 15. Be4
{[%clk 0:04:25.8]} 15... Bd7 {[%clk 0:04:41]} 16. Ke2 {[%clk 0:04:24.1]} 16...
Rac8 {[%clk 0:04:36]} 17. Ke3 {[%clk 0:04:20.5]} 17... Rfd8 {[%clk 0:04:35]} 18.
Rc3 {[%clk 0:04:16.6]} 18... Kf8 {[%clk 0:04:33.5]} 19. Rhc1 {[%clk 0:04:09.2]}
19... h6 {[%clk 0:04:32.5]} 20. h4 {[%clk 0:03:54.7]} 20... Ke7 {[%clk 0:04:26]}
21. g4 {[%clk 0:03:50.5]} 21... Nb4 {[%clk 0:04:20.1]} 22. a3 {[%clk 0:03:16.2]}
22... Rxc3+ {[%clk 0:04:05.9]} 23. Rxc3 {[%clk 0:03:13.6]} 23... Nc6 {[%clk
0:04:05]} 24. g5 {[%clk 0:02:54.5]} 24... hxg5 {[%clk 0:03:49.4]} 25. hxg5
{[%clk 0:02:54.4]} 25... f5 {[%clk 0:03:39.8]} 26. exf6+ {[%clk 0:02:32]} 26...
gxf6 {[%clk 0:03:38.6]} 27. g6 {[%clk 0:02:30.4]} 27... f5 {[%clk 0:03:33.5]}
28. Bxc6 {[%clk 0:02:29]} 28... Bxc6 {[%clk 0:03:29.7]} 29. Ne5 {[%clk
0:02:28.7]} 29... Kf6 {[%clk 0:03:25.6]} 30. Nxc6 {[%clk 0:02:22.2]} 30... bxc6
{[%clk 0:03:24.3]} 31. Rxc6 {[%clk 0:02:22.1]} 31... Kxg6 {[%clk 0:03:23.7]} 32.
Rxe6+ {[%clk 0:02:18]} 32... Kg5 {[%clk 0:03:22.7]} 33. f4+ {[%clk 0:02:00.5]}
33... Kg4 {[%clk 0:03:15.1]} 34. Rg6+ {[%clk 0:01:57.3]} 34... Kh3 {[%clk
0:03:07.3]} 35. Rg5 {[%clk 0:01:52.5]} 35... Re8+ {[%clk 0:03:06.3]} 36. Kf3
{[%clk 0:01:51.2]} 36... Re4 {[%clk 0:03:03.2]} 37. Rh5# {[%clk 0:01:49.9]} 1-0

[Event "Live Chess"]
[Site "Chess.com"]
[Date "2023.05.21"]
[Round "-"]
[White "Biranidun"]
[Black "Missedidea"]
[Result "1-0"]
[WhiteElo "2517"]
[BlackElo "1791"]
[TimeControl "300"]
[EndTime "5:05:14 PDT"]
[Termination "Biranidun won by resignation"]

1. e4 {[%clk 0:04:58.9]} 1... c5 {[%clk 0:04:57.3]} 2. Nf3 {[%clk 0:04:58]} 2...
d6 {[%clk 0:04:56.3]} 3. d4 {[%clk 0:04:57.7]} 3... cxd4 {[%clk 0:04:55.1]} 4.
Nxd4 {[%clk 0:04:57.6]} 4... Nf6 {[%clk 0:04:53.7]} 5. Nc3 {[%clk 0:04:57.3]}
5... g6 {[%clk 0:04:52.9]} 6. Be3 {[%clk 0:04:56.8]} 6... Bg7 {[%clk 0:04:52]}
7. f3 {[%clk 0:04:56.6]} 7... O-O {[%clk 0:04:51]} 8. Qd2 {[%clk 0:04:56.2]}
8... Nc6 {[%clk 0:04:49.9]} 9. Bc4 {[%clk 0:04:55.8]} 9... Bd7 {[%clk
0:04:48.9]} 10. O-O-O {[%clk 0:04:55.3]} 10... Rc8 {[%clk 0:04:47.4]} 11. Bb3
{[%clk 0:04:54.9]} 11... Ne5 {[%clk 0:04:45.7]} 12. Kb1 {[%clk 0:04:53.9]} 12...
Re8 {[%clk 0:04:33.6]} 13. h4 {[%clk 0:04:52.3]} 13... h5 {[%clk 0:04:30.9]} 14.
g4 {[%clk 0:04:49.9]} 14... b5 {[%clk 0:04:26]} 15. gxh5 {[%clk 0:04:44.2]}
15... Nxh5 {[%clk 0:04:23.1]} 16. Rhg1 {[%clk 0:04:40.7]} 16... b4 {[%clk
0:04:16.2]} 17. Nd5 {[%clk 0:04:39.3]} 17... a5 {[%clk 0:04:10.4]} 18. Nf4
{[%clk 0:04:34.1]} 18... Nxf4 {[%clk 0:04:00.5]} 19. Bxf4 {[%clk 0:04:34]} 19...
a4 {[%clk 0:03:55.2]} 20. Bd5 {[%clk 0:04:09.1]} 20... e6 {[%clk 0:03:49.8]} 21.
Bb7 {[%clk 0:03:58.1]} 21... Rc7 {[%clk 0:03:41.4]} 22. Ba6 {[%clk 0:03:57.3]}
22... Ra7 {[%clk 0:03:36]} 23. Be2 {[%clk 0:03:55]} 23... b3 {[%clk 0:03:34.1]}
24. cxb3 {[%clk 0:03:51.5]} 24... axb3 {[%clk 0:03:32.4]} 25. a3 {[%clk
0:03:50.1]} 25... Qc8 {[%clk 0:03:21.5]} 26. h5 {[%clk 0:03:48]} 26... Nc4
{[%clk 0:03:05.8]} 27. Bxc4 {[%clk 0:03:45.8]} 27... Qxc4 {[%clk 0:03:03.8]} 28.
Be3 {[%clk 0:03:30.3]} 28... Rc7 {[%clk 0:02:56.4]} 29. hxg6 {[%clk 0:03:26.5]}
29... fxg6 {[%clk 0:02:48]} 30. Rc1 {[%clk 0:03:24.9]} 30... Qc2+ {[%clk
0:02:39.1]} 31. Nxc2 {[%clk 0:03:23.3]} 31... bxc2+ {[%clk 0:02:36.8]} 32. Rxc2
{[%clk 0:03:23.2]} 32... d5 {[%clk 0:02:34.9]} 33. Rxc7 {[%clk 0:03:22]} 1-0

[Event "Live Chess"]
[Site "Chess.com"]
[Date "2023.05.21"]
[Round "-"]
[White "WelshTiger"]
[Black "Conradical12"]
[Result "1-0"]
[WhiteElo "2309"]
[BlackElo "1580"]
[TimeControl "300"]
[EndTime "5:05:17 PDT"]
[Termination "WelshTiger won by checkmate"]

1. e4 {[%clk 0:04:57.7]} 1... h6 {[%clk 0:04:57]} 2. d4 {[%clk 0:04:56.1]} 2...
h5 {[%clk 0:04:56.9]} 3. Nf3 {[%clk 0:04:53.8]} 3... h4 {[%clk 0:04:56.8]} 4. h3
{[%clk 0:04:52.7]} 4... a6 {[%clk 0:04:54.6]} 5. a4 {[%clk 0:04:51.4]} 5... a5
{[%clk 0:04:54.5]} 6. Nc3 {[%clk 0:04:50]} 6... b6 {[%clk 0:04:51.8]} 7. Bc4
{[%clk 0:04:48.1]} 7... b5 {[%clk 0:04:51.7]} 8. axb5 {[%clk 0:04:46.7]} 8... a4
{[%clk 0:04:50]} 9. Rxa4 {[%clk 0:04:44.8]} 9... Rxa4 {[%clk 0:04:48.1]} 10.
Nxa4 {[%clk 0:04:44.7]} 10... Na6 {[%clk 0:04:46.7]} 11. bxa6 {[%clk 0:04:43.1]}
11... Bb7 {[%clk 0:04:45.9]} 12. axb7 {[%clk 0:04:42]} 12... Qc8 {[%clk
0:04:45.6]} 13. bxc8=Q# {[%clk 0:04:40.3]} 1-0

[Event "Live Chess"]
[Site "Chess.com"]
[Date "2023.05.21"]
[Round "-"]
[White "ameetghasi100"]
[Black "NAZRIZ1977"]
[Result "1-0"]
[WhiteElo "2603"]
[BlackElo "1970"]
[TimeControl "300"]
[EndTime "5:05:29 PDT"]
[Termination "ameetghasi100 won by resignation"]

1. d4 {[%clk 0:04:58.9]} 1... Nf6 {[%clk 0:04:56.8]} 2. Nc3 {[%clk 0:04:58.8]}
2... d5 {[%clk 0:04:55.6]} 3. h4 {[%clk 0:04:58.7]} 3... c5 {[%clk 0:04:53.9]}
4. dxc5 {[%clk 0:04:57.4]} 4... Nc6 {[%clk 0:04:52.9]} 5. Bg5 {[%clk 0:04:57]}
5... d4 {[%clk 0:04:49.8]} 6. Nb1 {[%clk 0:04:55.6]} 6... e5 {[%clk 0:04:47.5]}
7. c3 {[%clk 0:04:54.6]} 7... Bxc5 {[%clk 0:04:46.1]} 8. Nf3 {[%clk 0:04:53.1]}
8... e4 {[%clk 0:04:43]} 9. Nxd4 {[%clk 0:04:50.5]} 9... Nxd4 {[%clk 0:04:42.2]}
10. cxd4 {[%clk 0:04:49.7]} 10... Qxd4 {[%clk 0:04:38.8]} 11. Qxd4 {[%clk
0:04:48.4]} 11... Bxd4 {[%clk 0:04:37.9]} 12. Nc3 {[%clk 0:04:47.9]} 12... O-O
{[%clk 0:04:25.2]} 13. e3 {[%clk 0:04:32.9]} 13... Bxc3+ {[%clk 0:04:20.8]} 14.
bxc3 {[%clk 0:04:23.1]} 14... Nd5 {[%clk 0:04:19.2]} 15. c4 {[%clk 0:04:17.7]}
15... Nb4 {[%clk 0:04:16.6]} 16. Kd2 {[%clk 0:04:15.8]} 16... f6 {[%clk
0:04:15]} 17. Bf4 {[%clk 0:04:13.7]} 17... Rd8+ {[%clk 0:04:14.1]} 18. Kc3
{[%clk 0:04:12.9]} 18... a5 {[%clk 0:04:13.5]} 19. a3 {[%clk 0:04:11.2]} 19...
Nd3 {[%clk 0:04:10.7]} 20. Bg3 {[%clk 0:04:08.4]} 20... Be6 {[%clk 0:04:05.9]}
21. f3 {[%clk 0:04:07]} 21... Rac8 {[%clk 0:03:54]} 22. Bxd3 {[%clk 0:04:00.4]}
22... Rxd3+ {[%clk 0:03:52.1]} 23. Kb2 {[%clk 0:03:58.4]} 23... Rxe3 {[%clk
0:03:42]} 24. Rae1 {[%clk 0:03:55.5]} 24... Rxe1 {[%clk 0:03:31.4]} 25. Rxe1
{[%clk 0:03:55.4]} 25... Rxc4 {[%clk 0:03:27.3]} 26. fxe4 {[%clk 0:03:52.1]}
26... Kf7 {[%clk 0:03:19.4]} 27. Bf2 {[%clk 0:03:47.6]} 27... b5 {[%clk
0:03:15.5]} 28. Bb6 {[%clk 0:03:43.8]} 28... a4 {[%clk 0:03:10.6]} 29. Ba5
{[%clk 0:03:42.8]} 29... Rd4 {[%clk 0:03:08.2]} 30. Bb4 {[%clk 0:03:41.2]} 30...
Rd3 {[%clk 0:03:06.1]} 31. Kc2 {[%clk 0:03:40.4]} 31... Rg3 {[%clk 0:03:03.6]}
32. Re2 {[%clk 0:03:39]} 32... Bc4 {[%clk 0:03:00.8]} 33. Rd2 {[%clk 0:03:37.8]}
33... Rg4 {[%clk 0:02:59.3]} 34. Rd7+ {[%clk 0:03:34.5]} 34... Kg6 {[%clk
0:02:56.4]} 35. Bf8 {[%clk 0:03:31.5]} 35... Bf7 {[%clk 0:02:45.5]} 36. h5+
{[%clk 0:03:29.5]} 36... Kxh5 {[%clk 0:02:41.8]} 37. Rxf7 {[%clk 0:03:29.4]}
37... Rxe4 {[%clk 0:02:34]} 38. Rxg7 {[%clk 0:03:27.5]} 38... h6 {[%clk
0:02:06]} 39. Rb7 {[%clk 0:03:23.6]} 39... Re2+ {[%clk 0:02:03]} 40. Kd3 {[%clk
0:03:21.4]} 40... Rxg2 {[%clk 0:02:02.1]} 41. Rxb5+ {[%clk 0:03:19.7]} 41... f5
{[%clk 0:02:01.3]} 42. Rxf5+ {[%clk 0:03:18.3]} 42... Kg6 {[%clk 0:01:59.7]} 43.
Ra5 {[%clk 0:03:17.6]} 43... h5 {[%clk 0:01:57.4]} 44. Rxa4 {[%clk 0:03:15.3]}
44... Kf7 {[%clk 0:01:54.5]} 45. Bc5 {[%clk 0:03:11.3]} 1-0

[Event "Live Chess"]
[Site "Chess.com"]
[Date "2023.05.21"]
[Round "-"]
[White "ElectricFalcon"]
[Black "Pandreq"]
[Result "1-0"]
[WhiteElo "1082"]
[BlackElo "1212"]
[TimeControl "300"]
[EndTime "5:05:34 PDT"]
[Termination "ElectricFalcon won by checkmate"]

1. d4 {[%clk 0:04:59.6]} 1... d5 {[%clk 0:04:58.8]} 2. c4 {[%clk 0:04:59.5]}
2... c6 {[%clk 0:04:57.6]} 3. Nf3 {[%clk 0:04:58.7]} 3... Nf6 {[%clk 0:04:56.5]}
4. Nc3 {[%clk 0:04:58]} 4... Bg4 {[%clk 0:04:53.7]} 5. Bg5 {[%clk 0:04:56.1]}
5... e6 {[%clk 0:04:52.6]} 6. e3 {[%clk 0:04:52.8]} 6... Nbd7 {[%clk 0:04:51.7]}
7. Be2 {[%clk 0:04:51.7]} 7... h6 {[%clk 0:04:49.6]} 8. Bxf6 {[%clk 0:04:50]}
8... Nxf6 {[%clk 0:04:48.7]} 9. Qc2 {[%clk 0:04:47]} 9... Bb4 {[%clk 0:04:44.2]}
10. e4 {[%clk 0:04:45.5]} 10... Nxe4 {[%clk 0:04:39.9]} 11. O-O {[%clk 0:04:43]}
11... Nxc3 {[%clk 0:04:29.2]} 12. bxc3 {[%clk 0:04:41.9]} 12... Ba5 {[%clk
0:04:26.5]} 13. c5 {[%clk 0:04:40.7]} 13... b6 {[%clk 0:04:23.5]} 14. Qa4 {[%clk
0:04:36.9]} 14... b5 {[%clk 0:04:16.4]} 15. Qc2 {[%clk 0:04:27.6]} 15... O-O
{[%clk 0:04:08.4]} 16. Ne5 {[%clk 0:04:26.6]} 16... Bxe2 {[%clk 0:04:01.5]} 17.
Qxe2 {[%clk 0:04:26.5]} 17... Qc7 {[%clk 0:03:59.2]} 18. Rac1 {[%clk 0:04:20.8]}
18... b4 {[%clk 0:03:50.6]} 19. cxb4 {[%clk 0:04:18.8]} 19... Bxb4 {[%clk
0:03:49.5]} 20. Rb1 {[%clk 0:04:10.7]} 20... a5 {[%clk 0:03:43.7]} 21. Qe3
{[%clk 0:04:02.7]} 21... Rfb8 {[%clk 0:03:34.2]} 22. a3 {[%clk 0:04:01.5]} 22...
Bxa3 {[%clk 0:03:25.5]} 23. Qxa3 {[%clk 0:04:00.3]} 23... Rxb1 {[%clk
0:03:24.5]} 24. Rxb1 {[%clk 0:04:00.2]} 24... Rb8 {[%clk 0:03:16.1]} 25. Rxb8+
{[%clk 0:03:55.3]} 25... Qxb8 {[%clk 0:03:15.4]} 26. h3 {[%clk 0:03:54.3]} 26...
Qb4 {[%clk 0:03:09]} 27. Qf3 {[%clk 0:03:52.8]} 27... f6 {[%clk 0:02:59.3]} 28.
Nxc6 {[%clk 0:03:48.4]} 28... Qe1+ {[%clk 0:02:56.7]} 29. Kh2 {[%clk 0:03:46.4]}
29... a4 {[%clk 0:02:53.7]} 30. Qg3 {[%clk 0:03:36.5]} 30... Qa1 {[%clk
0:02:35.3]} 31. Qg6 {[%clk 0:03:33.4]} 31... Qxd4 {[%clk 0:02:26.6]} 32. Nxd4
{[%clk 0:03:23.1]} 32... a3 {[%clk 0:02:21.6]} 33. Nxe6 {[%clk 0:03:17.1]} 33...
a2 {[%clk 0:02:18.8]} 34. Qxg7# {[%clk 0:03:16.4]} 1-0